bitfinex-derivatives/quotes_SOLF0:USTF0_20250127
["timestamp","ask_amount","ask_price","bid_price","bid_amount"]
[1738021606347,0.02755135,234.61,234.59,4.2633]
[1738021606952,4.2632,234.6,234.57,4.29422491]
[1738021609350,0.02755135,234.61,234.57,0.03072491]
[1738021609554,6.72694288,234.61,234.57,0.03072491]
[1738021609761,6.69939153,234.59,234.57,0.03072491]
[1738021610052,10.96279153,234.59,234.57,0.03072491]
[1738021612155,4.2635,234.58,234.57,0.03072491]
[1738021612653,6.69939153,234.59,234.57,0.03072491]
[1738021612857,10.96269153,234.59,234.57,0.03072491]
[1738021618762,0.02755135,234.61,234.6,4.2631]
[1738021621668,5.135e-05,234.61,234.6,4.2631]
[1738021623568,6.69944288,234.61,234.57,0.03072491]
[1738021623871,6.69939153,234.58,234.57,0.03072491]
[1738021624074,6.69939153,234.58,234.51,4.2648]
[1738021624271,6.69939153,234.54,234.51,4.2648]
[1738021627778,6.69939153,234.54,234.5,0.02888837]
[1738021627977,10.96409153,234.52,234.5,0.02888837]
[1738021628376,4.2648,234.51,234.5,0.02888837]
[1738021629076,6.69939153,234.52,234.5,0.02888837]
[1738021629877,6.69939153,234.54,234.5,0.02888837]
[1738021630081,6.69939153,234.52,234.5,0.02888837]
[1738021630279,10.96409153,234.52,234.5,0.02888837]
[1738021631880,4.2648,234.51,234.5,0.02888837]
[1738021632083,6.69939153,234.52,234.39,6.69939153]
[1738021632283,6.69939153,234.46,234.37,6.69939153]
[1738021632680,6.69939153,234.44,234.37,6.69939153]
[1738021633184,0.0307992,234.43,234.38,0.02886066]
[1738021633382,0.0307992,234.43,234.41,4.2666]
[1738021636786,0.0307992,234.43,234.42,4.2664]
[1738021654402,9.92e-05,234.43,234.42,4.2664]
[1738021662108,9.92e-05,234.43,234.38,0.02886066]
[1738021662312,9.92e-05,234.43,234.4,4.2667]
[1738021663516,9.92e-05,234.43,234.42,4.2664]
[1738021667113,9.92e-05,234.43,234.41,4.2666]
[1738021669119,9.92e-05,234.43,234.42,4.2664]
[1738021671816,9.92e-05,234.43,234.38,0.02886066]
[1738021672018,6.69939153,234.39,234.38,0.02886066]
[1738021672220,9.92e-05,234.43,234.38,0.02886066]
[1738021672221,10.96599153,234.41,234.38,0.02886066]
[1738021672917,6.69939153,234.41,234.38,0.02886066]
[1738021673916,9.92e-05,234.43,234.38,0.02886066]
[1738021674124,9.92e-05,234.43,234.42,6.69939153]
[1738021674822,9.92e-05,234.43,234.42,10.96579153]
[1738021675224,6.69939153,234.56,234.42,72.98692038]
[1738021675517,9.46819153,234.58,234.49,6.69939153]
[1738021675718,9.46819153,234.58,234.51,6.69939153]
[1738021675915,13.73179153,234.58,234.53,4.2643]
[1738021676114,12.35039153,234.58,234.53,4.2643]
[1738021676317,12.38074381,234.58,234.53,4.29126132]
[1738021676518,0.03035228,234.58,234.57,4.2637]
[1738021676717,0.03035228,234.58,234.57,10.96309153]
[1738021677321,0.03035228,234.58,234.57,4.2637]
[1738021677721,6.69939153,234.68,234.62,4.2627]
[1738021677926,6.69939153,234.64,234.56,6.69939153]
[1738021678126,6.69939153,234.64,234.54,8.09709153]
[1738021678426,6.69939153,234.64,234.58,4.2634]
[1738021679020,0.02881984,234.63,234.59,0.03125845]
[1738021679220,0.02881984,234.63,234.61,4.2629]
[1738021680522,0.02881984,234.63,234.59,0.03125845]
[1738021682420,0.02881984,234.63,234.62,4.2628]
[1738021683726,0.02881984,234.63,234.62,10.96219153]
[1738021683925,6.69939153,234.74,234.62,6.69939153]
[1738021684119,6.69939153,234.74,234.66,6.69939153]
[1738021684622,6.69939153,234.74,234.7,4.2613]
[1738021684828,6.69939153,234.74,234.66,6.69939153]
[1738021685030,0.02765219,234.74,234.72,4.261]
[1738021685425,6.89613153,234.73,234.66,6.69939153]
[1738021685728,6.89613153,234.73,234.7,0.03100238]
[1738021686227,11.15703153,234.73,234.7,0.03100238]
[1738021686629,6.89613153,234.73,234.7,0.03100238]
[1738021687220,0.19674,234.73,234.7,0.03100238]
[1738021687728,0.19674,234.73,234.71,4.2611]
[1738021688027,0.19674,234.73,234.7,0.03100238]
[1738021689229,6.89613153,234.73,234.7,0.03100238]
[1738021689928,4.261,234.72,234.7,0.03100238]
[1738021690331,11.15693153,234.73,234.7,0.03100238]
[1738021691027,10.96049153,234.71,234.7,0.03100238]
[1738021691229,6.69939153,234.71,234.6,66.28752885]
[1738021691527,6.69939153,234.65,234.6,66.28752885]
[1738021692131,6.69939153,234.65,234.63,4.2625]
[1738021692630,10.96169153,234.65,234.62,0.02906137]
[1738021695437,6.69939153,234.65,234.62,0.02906137]
[1738021696130,6.69939153,234.65,234.62,4.29176137]
[1738021696941,6.69939153,234.65,234.62,0.02906137]
[1738021697139,0.02710885,234.66,234.63,6.69939153]
[1738021697333,8.85e-06,234.66,234.65,6.69939153]
[1738021697839,8.85e-06,234.66,234.65,10.96159153]
[1738021700239,6.69939153,234.79,234.76,4.2601]
[1738021700647,4.2181,234.81,234.76,4.2601]
[1738021701042,8.4774,234.81,234.76,4.2601]
[1738021701450,8.50576857,234.81,234.76,4.28866578]
[1738021701647,4.24646857,234.81,234.76,0.02856578]
[1738021701847,14.71151305,234.77,234.76,0.02856578]
[1738021702048,10.45151305,234.77,234.65,66.28752885]
[1738021702352,10.45151305,234.73,234.58,76.7390419]
[1738021702542,4.2613,234.7,234.58,76.7390419]
[1738021702851,10.45151305,234.7,234.58,66.28752885]
[1738021703149,0.03244188,234.66,234.63,4.2626]
[1738021704145,0.03244188,234.66,234.65,4.2622]
[1738021708248,0.03244188,234.66,234.64,4.2623]
[1738021708546,0.03244188,234.66,234.62,0.0282975]
[1738021708952,0.03244188,234.66,234.63,4.2626]
[1738021709648,0.03244188,234.66,234.62,0.0282975]
[1738021710947,4.2624,234.64,234.62,0.0282975]
[1738021711151,0.03244188,234.66,234.62,0.0282975]
[1738021712550,4.2622,234.65,234.62,0.0282975]
[1738021712750,0.03244188,234.66,234.62,0.0282975]
[1738021713247,0.03244188,234.66,234.65,4.2622]
[1738021713651,0.19564,234.78,234.64,10.45151305]
[1738021713954,4.2602,234.77,234.64,10.45151305]
[1738021714756,0.02766962,234.73,234.68,0.02734221]
[1738021715155,0.02766962,234.73,234.69,4.2614]
[1738021715354,0.02766962,234.73,234.68,0.02734221]
[1738021718455,4.28846962,234.73,234.68,0.02734221]
[1738021720159,4.261,234.72,234.68,0.02734221]
[1738021720458,0.02766962,234.73,234.68,0.02734221]
[1738021721253,10.47918267,234.73,234.68,0.02734221]
[1738021722065,4.2615,234.69,234.68,0.02734221]
[1738021725662,0.02766962,234.73,234.68,0.02734221]
[1738021728369,0.02766962,234.73,234.69,10.45151305]
[1738021729469,0.02766962,234.73,234.72,4.261]
[1738021729873,0.02766962,234.73,234.68,0.02734221]
[1738021730075,0.02766962,234.73,234.69,4.2615]
[1738021730976,0.02766962,234.73,234.68,0.02734221]
[1738021731276,10.47918267,234.73,234.68,0.02734221]
[1738021731480,4.2615,234.69,234.68,0.02734221]
[1738021734178,4.2613,234.7,234.68,0.02734221]
[1738021735379,0.02766962,234.73,234.68,0.02734221]
[1738021735978,0.02766962,234.73,234.7,4.2613]
[1738021737281,0.02766962,234.73,234.71,4.2611]
[1738021737478,0.02766962,234.73,234.68,0.02734221]
[1738021739179,0.02766962,234.73,234.71,4.2611]
[1738021740487,0.02766962,234.73,234.68,0.02734221]
[1738021740682,0.02766962,234.73,234.72,4.261]
[1738021741381,6.962e-05,234.73,234.72,4.261]
[1738021742389,6.962e-05,234.73,234.7,4.2611]
[1738021742787,6.962e-05,234.73,234.68,0.02734221]
[1738021743088,6.962e-05,234.73,234.71,4.2611]
[1738021747698,6.962e-05,234.73,234.68,4.28904221]
[1738021747898,6.962e-05,234.73,234.68,0.02734221]
[1738021748299,4.2611,234.71,234.68,0.02734221]
[1738021749999,6.962e-05,234.73,234.68,0.02734221]
[1738021752199,6.962e-05,234.73,234.72,4.261]
[1738021755005,6.962e-05,234.73,234.68,0.02734221]
[1738021756206,4.2611,234.72,234.68,4.28884221]
[1738021756600,4.2611,234.72,234.69,4.2615]
[1738021757304,4.2611,234.72,234.68,0.02734221]
[1738021757503,4.2611,234.72,234.68,4.28904221]
[1738021760408,10.45151305,234.71,234.56,11.79849905]
[1738021760701,10.45151305,234.61,234.51,9.64494208]
[1738021760907,4.2642,234.54,234.51,9.64494208]
[1738021761103,10.45151305,234.58,234.51,9.64494208]
[1738021761408,4.2641,234.55,234.51,9.64494208]
[1738021761608,4.2641,234.55,234.52,0.02853077]
[1738021764209,4.2644,234.53,234.52,0.02853077]
[1738021766916,10.45151305,234.55,234.52,0.02853077]
[1738021767216,4.2643,234.54,234.52,0.02853077]
[1738021768116,0.02741183,234.57,234.52,0.02853077]
[1738021770221,0.02741183,234.57,234.53,4.2644]
[1738021770415,0.02741183,234.57,234.52,0.02853077]
[1738021772018,0.02741183,234.57,234.56,4.2639]
[1738021782321,10.45151305,234.67,234.66,4.262]
[1738021782526,66.67973867,234.88,234.62,10.45151305]
[1738021782527,10.45151305,234.77,234.62,10.45151305]
[1738021782727,10.45151305,234.8,234.65,10.45151305]
[1738021782925,4.2598,234.79,234.65,10.45151305]
[1738021783523,10.45151305,234.8,234.73,4.2607]
[1738021784429,14.71111305,234.8,234.74,4.2606]
[1738021784624,10.45151305,234.8,234.69,0.02828326]
[1738021784825,1.4037,234.82,234.69,0.02828326]
[1738021785022,10.45151305,234.86,234.77,4.26]
[1738021785430,48.95257859,234.88,234.77,4.26]
[1738021785924,53.21067859,234.88,234.77,4.26]
[1738021787030,17.35381305,234.89,234.82,4.2591]
[1738021787425,17.35381305,234.89,234.83,0.02829217]
[1738021789231,17.35381305,234.89,234.83,4.28719217]
[1738021790534,16.02381305,234.89,234.83,4.28719217]
[1738021790741,11.89131305,234.95,234.83,0.02829217]
[1738021792145,11.89131305,234.95,234.9,4.2576]
[1738021792639,11.89131305,234.95,234.9,4.28486648]
[1738021793040,11.89131305,234.95,234.91,4.2575]
[1738021793841,11.89131305,234.95,234.9,0.02726648]
[1738021794147,4.2575,234.91,234.9,0.02726648]
[1738021798643,4.227,234.95,234.9,0.02726648]
[1738021798842,4.2572,234.93,234.9,0.02726648]
[1738021799445,2.8779,234.95,234.9,0.02726648]
[1738021799645,1.4398,234.95,234.9,0.02726648]
[1738021800445,5.6966,234.95,234.9,4.28476648]
[1738021800745,10.45151305,234.99,234.9,0.02726648]
[1738021800947,4.2563,234.98,234.94,4.2569]
[1738021802447,4.2564,234.98,234.93,4.2571]
[1738021802643,10.45151305,234.99,234.9,0.02726648]
[1738021802844,10.45151305,234.96,234.85,1.3134]
[1738021803044,4.2573,234.93,234.92,0.02807248]
[1738021805545,4.2569,234.95,234.92,0.02807248]
[1738021805745,10.45151305,234.99,234.92,0.02807248]
[1738021805947,10.45151305,234.96,234.92,0.02807248]
[1738021806148,4.2571,234.93,234.92,0.02807248]
[1738021806346,14.70861305,234.93,234.92,0.02807248]
[1738021806748,4.258,234.89,234.84,4.2587]
[1738021807150,4.258,234.89,234.8,66.28752885]
[1738021807451,4.258,234.89,234.82,4.259]
[1738021807652,4.258,234.89,234.8,66.28752885]
[1738021807853,0.02807248,234.88,234.83,0.03041701]
[1738021808254,0.02807248,234.88,234.85,4.2586]
[1738021808953,0.02807248,234.88,234.83,0.03041701]
[1738021809954,0.02807248,234.88,234.86,4.2584]
[1738021810156,0.02807248,234.88,234.83,0.03041701]
[1738021810655,0.02807248,234.88,234.87,4.2582]
[1738021812856,0.02807248,234.88,234.83,10.48193006]
[1738021813058,0.02807248,234.88,234.86,4.2584]
[1738021813257,0.02807248,234.88,234.83,0.03041701]
[1738021814158,0.02807248,234.88,234.87,4.2582]
[1738021814859,0.02807248,234.88,234.85,4.2584]
[1738021815259,0.02807248,234.88,234.83,0.03041701]
[1738021815460,0.02807248,234.88,234.86,4.2584]
[1738021816361,0.02807248,234.88,234.83,0.03041701]
[1738021816561,0.02807248,234.88,234.87,4.2582]
[1738021816956,0.02807248,234.88,234.83,0.03041701]
[1738021817157,4.2585,234.86,234.83,0.03041701]
[1738021818561,4.2583,234.87,234.83,0.03041701]
[1738021819260,4.2583,234.87,234.83,4.28931701]
[1738021819465,0.02807248,234.88,234.83,0.03041701]
[1738021819955,0.02807248,234.88,234.87,4.2582]
[1738021824671,0.02807248,234.88,234.85,4.2584]
[1738021824974,0.02807248,234.88,234.83,0.03041701]
[1738021825272,0.02807248,234.88,234.87,4.2582]
[1738021826278,0.02807248,234.88,234.83,0.03041701]
[1738021826974,4.2585,234.86,234.83,0.03041701]
[1738021827572,0.02807248,234.88,234.83,0.03041701]
[1738021827773,4.2583,234.87,234.83,0.03041701]
[1738021828071,0.02807248,234.88,234.83,0.03041701]
[1738021828673,10.45151305,234.87,234.83,0.03041701]
[1738021828875,4.2588,234.84,234.83,0.03041701]
[1738021829075,10.45151305,234.87,234.78,4.2599]
[1738021829476,1.3638,234.86,234.78,4.2599]
[1738021829976,4.259,234.83,234.79,4.2597]
[1738021830276,4.259,234.83,234.8,0.03208649]
[1738021830878,4.2588,234.84,234.8,0.03208649]
[1738021832274,0.02807248,234.88,234.8,0.03208649]
[1738021832766,0.02807248,234.88,234.82,4.2591]
[1738021832969,0.02807248,234.88,234.8,0.03208649]
[1738021833169,10.47958553,234.88,234.8,0.03208649]
[1738021834077,4.2588,234.84,234.8,4.29158649]
[1738021834377,10.47958553,234.88,234.8,0.03208649]
[1738021835178,4.2592,234.82,234.8,0.03208649]
[1738021837371,10.47958553,234.88,234.8,0.03208649]
[1738021837574,4.2593,234.81,234.8,0.03208649]
[1738021838778,0.03240665,234.83,234.8,0.03208649]
[1738021838982,4.29150665,234.83,234.8,0.03208649]
[1738021840080,4.29150665,234.83,234.8,4.29148649]
[1738021842185,0.03240665,234.83,234.8,0.03208649]
[1738021842375,4.2593,234.81,234.8,0.03208649]
[1738021842885,4.2604,234.75,234.72,4.2609]
[1738021843086,10.45151305,234.81,234.68,2.6809]
[1738021843488,4.2602,234.77,234.74,4.2605]
[1738021843781,0.02698264,234.78,234.73,0.0273268]
[1738021844382,0.02698264,234.78,234.74,4.2605]
[1738021844580,0.02698264,234.78,234.73,0.0273268]
[1738021845785,0.02698264,234.78,234.75,4.2603]
[1738021847288,0.02698264,234.78,234.76,4.2602]
[1738021848487,4.09074264,234.79,234.76,4.2602]
[1738021853693,4.2599,234.78,234.76,4.2602]
[1738021853892,4.2599,234.78,234.74,4.2606]
[1738021854190,0.03094352,234.8,234.73,0.0273268]
[1738021854387,0.03094352,234.8,234.79,4.2597]
[1738021854686,1.3799,234.92,234.73,66.31485565]
[1738021854892,1.3799,234.92,234.79,10.45151305]
[1738021855383,4.258,234.89,234.79,10.45151305]
[1738021855991,0.02835694,234.86,234.84,4.2588]
[1738021856388,4.259,234.83,234.82,0.03278414]
[1738021858691,0.02835694,234.86,234.82,0.03278414]
[1738021858895,4.2587,234.85,234.82,0.03278414]
[1738021859094,0.02835694,234.86,234.82,0.03278414]
[1738021859691,1.43495694,234.86,234.82,0.03278414]
[1738021859893,4.259,234.83,234.82,0.03278414]
[1738021862695,4.259,234.83,234.82,8.414e-05]
[1738021862894,10.45151305,234.84,234.68,2.6809]
[1738021863098,10.45151305,234.8,234.68,2.6809]
[1738021863691,4.2602,234.76,234.68,2.6809]
[1738021864096,0.03123564,234.74,234.7,0.03178085]
[1738021864290,0.03123564,234.74,234.72,4.2608]
[1738021867105,0.03123564,234.74,234.7,0.03178085]
[1738021867402,10.45151305,234.73,234.57,87.62011161]
[1738021867598,10.45151305,234.7,234.59,1.3444]
[1738021867805,10.45151305,234.76,234.59,11.79591305]
[1738021868101,10.45151305,234.76,234.62,10.45151305]
[1738021868406,0.03121889,234.71,234.67,4.29095524]
[1738021870703,4.29241889,234.71,234.67,0.02915524]
[1738021871007,0.03121889,234.71,234.67,0.02915524]
[1738021872314,10.45151305,234.7,234.67,0.02915524]
[1738021873202,4.2617,234.68,234.67,0.02915524]
[1738021879217,10.45151305,234.7,234.53,87.46093067]
[1738021879417,10.45151305,234.65,234.53,77.00941762]
[1738021879617,10.45151305,234.65,234.56,4.2638]
[1738021879915,10.45151305,234.65,234.53,77.00941762]
[1738021879916,4.2635,234.58,234.52,1.4287]
[1738021880117,10.45151305,234.62,234.52,1.4287]
[1738021880317,10.45151305,234.62,234.52,5.6932]
[1738021880525,0.02688451,234.59,234.55,0.02878161]
[1738021881418,4.2636,234.58,234.55,0.02878161]
[1738021881617,0.02688451,234.59,234.55,0.02878161]
[1738021883230,4.29018451,234.59,234.55,4.29268161]
[1738021887237,0.02688451,234.59,234.58,4.2635]
[1738021889144,4.2619,234.67,234.63,4.2625]
[1738021889840,4.2621,234.66,234.63,4.2625]
[1738021890541,4.2621,234.66,234.62,0.03200587]
[1738021890841,4.2622,234.65,234.62,0.03200587]
[1738021893144,0.02895845,234.67,234.62,0.03200587]
[1738021893344,4.2625,234.64,234.62,0.03200587]
[1738021895642,4.2626,234.63,234.62,0.03200587]
[1738021896750,9.47913468,234.63,234.43,66.28752885]
[1738021897045,6.69913468,234.49,234.43,70.55372885]
[1738021897347,6.69913468,234.49,234.43,4.2662]
[1738021897549,10.96433468,234.49,234.43,4.2662]
[1738021897847,0.02926274,234.48,234.44,0.02748893]
[1738021900549,0.02926274,234.48,234.47,4.2655]
[1738021900846,10.47888868,234.58,234.44,0.02748893]
[1738021901046,10.47888868,234.58,234.43,76.76641753]
[1738021902049,0.0323462,234.53,234.48,0.0279409]
[1738021902950,4.2968462,234.53,234.48,4.2932409]
[1738021904150,4.2968462,234.53,234.48,0.0279409]
[1738021904351,4.2968462,234.53,234.49,4.2651]
[1738021905149,0.0323462,234.53,234.49,4.2651]
[1738021905452,0.0323462,234.53,234.48,4.2932409]
[1738021906354,0.0323462,234.53,234.48,0.0279409]
[1738021906549,4.2646,234.52,234.48,0.0279409]
[1738021906854,0.0323462,234.53,234.48,0.0279409]
[1738021907355,4.2646,234.52,234.48,4.2930409]
[1738021907657,0.0323462,234.53,234.48,0.0279409]
[1738021907955,0.0323462,234.53,234.52,4.2646]
[1738021910059,4.263,234.61,234.56,4.2637]
[1738021910351,10.47888868,234.64,234.49,10.47888868]
[1738021910552,14.74148868,234.64,234.49,10.47888868]
[1738021910950,10.47888868,234.64,234.54,0.02887599]
[1738021911150,0.03253217,234.59,234.54,0.02887599]
[1738021911948,0.03253217,234.59,234.58,4.2635]
[1738021914350,0.03253217,234.59,234.54,4.29297599]
[1738021914553,0.03253217,234.59,234.54,0.02887599]
[1738021916257,0.03253217,234.59,234.58,4.2635]
[1738021917059,0.03253217,234.59,234.54,0.02887599]
[1738021920558,0.03253217,234.59,234.56,10.47888868]
[1738021920862,0.19749,234.71,234.57,2.8877]
[1738021921059,10.67637868,234.71,234.57,2.8877]
[1738021921960,0.02969792,234.66,234.62,0.02943157]
[1738021922762,0.19749,234.71,234.65,6.6938059]
[1738021922958,0.19749,234.71,234.68,6.6938059]
[1738021923160,0.19749,234.71,234.66,6.6938059]
[1738021923459,6.8912959,234.71,234.64,6.6938059]
[1738021923861,6.6938059,234.71,234.64,6.6938059]
[1738021924063,6.6938059,234.71,234.65,0.03030594]
[1738021924664,10.45871759,234.75,234.65,0.03030594]
[1738021925864,10.45871759,234.78,234.65,0.03030594]
[1738021928565,10.45871759,234.75,234.65,0.03030594]
[1738021930568,10.45871759,234.78,234.65,0.03030594]
[1738021930764,2.7137,234.79,234.66,10.45871759]
[1738021931267,10.45871759,234.72,234.7,0.03190069]
[1738021933267,4.2611,234.71,234.7,0.03190069]
[1738021933768,4.2621,234.66,234.63,4.2626]
[1738021934467,4.2619,234.68,234.63,4.2626]
[1738021934964,4.29139222,234.68,234.63,4.29015494]
[1738021935471,4.2619,234.67,234.63,4.29015494]
[1738021936270,10.45871759,234.66,234.63,0.02755494]
[1738021936767,4.2624,234.65,234.63,0.02755494]
[1738021937172,4.2624,234.64,234.63,0.02755494]
[1738021938366,4.2623,234.65,234.63,0.02755494]
[1738021938567,1.4358,234.67,234.63,0.02755494]
[1738021939566,4.2624,234.64,234.63,0.02755494]
[1738021939771,10.45871759,234.66,234.54,66.28752885]
[1738021940264,4.2628,234.62,234.59,4.2633]
[1738021940461,10.45871759,234.66,234.59,4.2633]
[1738021940660,10.45871759,234.66,234.54,66.28752885]
[1738021940661,1.4358,234.67,234.54,76.74624644]
[1738021940864,1.4358,234.67,234.64,4.2623]
[1738021941067,1.4358,234.67,234.54,76.74624644]
[1738021941271,4.2621,234.66,234.63,0.03141179]
[1738021941465,4.2621,234.66,234.62,4.2627]
[1738021941659,4.2621,234.66,234.62,4.29064497]
[1738021942169,4.2621,234.66,234.63,4.2626]
[1738021942470,5.73049085,234.67,234.63,4.2626]
[1738021942771,1.46859085,234.67,234.63,4.2626]
[1738021942968,1.46859085,234.67,234.62,0.02794497]
[1738021943667,4.2626,234.63,234.62,0.02794497]
[1738021944572,10.96218322,234.63,234.62,0.02794497]
[1738021946072,6.69958322,234.63,234.62,0.02794497]
[1738021946472,6.69958322,234.65,234.62,0.02794497]
[1738021946969,8.16817407,234.67,234.62,0.02794497]
[1738021948173,12.43017407,234.67,234.64,4.2624]
[1738021948474,8.16817407,234.67,234.62,0.02794497]
[1738021949471,8.16817407,234.67,234.63,4.2625]
[1738021949472,4.2621,234.66,234.63,4.2625]
[1738021951478,8.16817407,234.67,234.62,0.02794497]
[1738021951681,4.2623,234.65,234.62,0.02794497]
[1738021951870,8.16817407,234.67,234.62,0.02794497]
[1738021952177,4.2621,234.66,234.63,4.2624]
[1738021952378,0.03279085,234.67,234.63,6.69958322]
[1738021953273,0.03279085,234.67,234.62,0.02794497]
[1738021954079,0.03279085,234.67,234.66,4.262]
[1738021962685,6.69958322,234.75,234.65,6.69958322]
[1738021963279,6.69958322,234.75,234.71,4.261]
[1738021963886,6.73029316,234.75,234.71,4.29048924]
[1738021964788,6.73029316,234.75,234.71,0.02948924]
[1738021964987,6.73029316,234.75,234.72,4.2609]
[1738021965687,0.03070994,234.75,234.71,0.02948924]
[1738021965887,0.03070994,234.75,234.73,4.2608]
[1738021966289,0.03070994,234.75,234.71,0.02948924]
[1738021966588,0.03070994,234.75,234.72,4.2609]
[1738021967390,10.99089316,234.75,234.72,4.2609]
[1738021969887,6.73029316,234.75,234.71,0.02948924]
[1738021970083,6.73029316,234.75,234.73,4.2608]
[1738021970287,6.73029316,234.75,234.71,0.02948924]
[1738021972093,4.2608,234.74,234.71,0.02948924]
[1738021973493,6.73029316,234.75,234.71,0.02948924]
[1738021973793,10.99069316,234.75,234.71,4.29048924]
[1738021976290,4.261,234.72,234.71,0.02948924]
[1738021977590,4.2606,234.74,234.71,0.02948924]
[1738021977998,6.73029316,234.75,234.71,0.02948924]
[1738021978298,6.73029316,234.75,234.73,4.2607]
[1738021978299,0.03070994,234.75,234.73,4.2607]
[1738021978792,0.03070994,234.75,234.74,4.2606]
[1738021978998,6.69958322,234.85,234.73,6.69958322]
[1738021979290,6.69958322,234.85,234.77,6.69958322]
[1738021979598,4.2588,234.84,234.79,4.2595]
[1738021979994,4.2588,234.84,234.79,4.28767327]
[1738021980188,6.69958322,234.85,234.79,4.28767327]
[1738021980389,10.95858322,234.83,234.79,4.28767327]
[1738021984298,6.69958322,234.85,234.82,4.259]
[1738021984494,6.69958322,234.85,234.79,0.02817327]
[1738021984700,6.69958322,234.89,234.81,6.69958322]
[1738021985099,6.69958322,234.87,234.79,6.72775649]
[1738021985598,4.0988,234.95,234.79,0.02817327]
[1738021985599,6.69958322,234.83,234.79,0.02817327]
[1738021986697,6.69958322,234.85,234.79,0.02817327]
[1738021987097,6.69958322,234.87,234.79,0.02817327]
[1738021987304,4.2578,234.9,234.83,6.69958322]
[1738021987707,10.95708322,234.91,234.87,4.2582]
[1738021988106,6.69958322,234.91,234.84,0.0292293]
[1738021988504,10.95748322,234.89,234.86,4.2584]
[1738021990106,6.69958322,234.89,234.86,4.2584]
[1738021990308,6.69958322,234.89,234.87,4.2581]
[1738021991107,6.69958322,234.89,234.84,4.2878293]
[1738021991307,6.69958322,234.86,234.84,0.0292293]
[1738021991707,10.95798322,234.86,234.84,0.0292293]
[1738021992606,4.2584,234.86,234.84,0.0292293]
[1738021995507,6.69958322,234.88,234.84,0.0292293]
[1738021995712,6.69958322,234.88,234.85,4.2586]
[1738021996014,6.69958322,234.9,234.84,0.0292293]
[1738021996708,6.69958322,234.9,234.85,4.2585]
[1738021997014,6.69958322,234.9,234.84,0.0292293]
[1738021998112,10.95728322,234.9,234.86,4.2583]
[1738021998314,6.69958322,234.88,234.84,0.0292293]
[1738021999716,4.2583,234.87,234.84,0.0292293]
[1738022000605,4.2586,234.85,234.74,6.69958322]
[1738022000814,6.69958322,234.81,234.72,74.35481207]
[1738022001921,0.03199777,234.79,234.74,0.03157087]
[1738022002115,0.03199777,234.79,234.74,6.73115409]
[1738022002317,0.03199777,234.79,234.74,0.03157087]
[1738022003020,0.03199777,234.79,234.76,4.2601]
[1738022003519,0.03199777,234.79,234.77,4.26]
[1738022004515,0.03199777,234.79,234.74,0.03157087]
[1738022004719,4.29169777,234.79,234.74,0.03157087]
[1738022005716,6.73158099,234.79,234.74,4.29217087]
[1738022005922,6.69958322,234.77,234.74,0.03157087]
[1738022006921,4.2603,234.76,234.74,0.03157087]
[1738022009125,6.69958322,234.77,234.74,0.03157087]
[1738022009326,6.69958322,234.77,234.74,4.29217087]
[1738022009520,6.69958322,234.77,234.74,0.03157087]
[1738022009826,6.69958322,234.77,234.75,4.2604]
[1738022010525,10.95978322,234.77,234.74,0.03157087]
[1738022010825,6.69958322,234.77,234.74,0.03157087]
[1738022011026,6.69958322,234.77,234.74,4.29197087]
[1738022011525,4.2599,234.78,234.74,4.29197087]
[1738022012525,4.2601,234.77,234.74,0.03157087]
[1738022012727,6.73158099,234.79,234.74,0.03157087]
[1738022013226,10.99138099,234.79,234.74,4.29207087]
[1738022013821,4.2599,234.78,234.74,4.29207087]
[1738022014925,6.73158099,234.79,234.74,0.03157087]
[1738022014926,10.95978322,234.77,234.74,0.03157087]
[1738022015120,6.69958322,234.77,234.74,0.03157087]
[1738022015523,4.2603,234.76,234.74,0.03157087]
[1738022019631,10.95968322,234.77,234.74,0.03157087]
[1738022019831,6.73158099,234.79,234.74,4.29217087]
[1738022020429,4.2599,234.78,234.75,4.2604]
[1738022021333,6.69958322,234.77,234.74,0.03157087]
[1738022021531,4.2603,234.76,234.74,0.03157087]
[1738022021732,6.69958322,234.77,234.74,0.03157087]
[1738022022536,10.95968322,234.77,234.74,0.03157087]
[1738022026837,0.03199777,234.79,234.76,4.2601]
[1738022027337,0.03199777,234.79,234.74,0.03157087]
[1738022027538,0.03199777,234.79,234.75,6.69958322]
[1738022029340,0.03199777,234.79,234.78,4.2599]
[1738022030636,0.03199777,234.79,234.75,6.69958322]
[1738022030942,0.03199777,234.79,234.76,4.2602]
[1738022031131,0.03199777,234.79,234.74,0.03157087]
[1738022031335,6.69958322,234.78,234.74,0.03157087]
[1738022032339,6.69958322,234.78,234.76,4.2602]
[1738022032535,0.03199777,234.79,234.76,4.2602]
[1738022035739,0.03199777,234.79,234.74,0.03157087]
[1738022036941,6.69958322,234.78,234.74,0.03157087]
[1738022037443,0.03199777,234.79,234.74,0.03157087]